fUST/lending_fUST_20251205
["ID","MTS","AMOUNT","RATE_DAILY","PERIOD"]
[396367638,1764945035854,-500.0,0.00014247,2]
[396367639,1764945035866,-151.0,0.000143,2]
[396367640,1764945035877,-587.0,0.00014316,2]
[396367641,1764945035888,-781.07788388,0.00014366,2]
[396367642,1764945035900,-1500.0,0.00014368,2]
[396367643,1764945035910,-1500.0,0.00014368,2]
[396367644,1764945035921,-1500.0,0.00014368,2]
[396367645,1764945035931,-593.15727872,0.00014368,2]
[396367646,1764945035941,-564.10717772,0.00014368,2]
[396367647,1764945035950,-1500.0,0.00014368,2]
[396367648,1764945035961,-1500.0,0.00014368,2]
[396367649,1764945035979,-1500.0,0.00014368,2]
[396367650,1764945035989,-1500.0,0.00014368,2]
[396367651,1764945035999,-225.69638635,0.00014405,2]
[396367652,1764945036009,-207.8033375,0.00014405,2]
[396367653,1764945036018,-2579.17784983,0.00014408,2]
[396367654,1764945036028,-151.0,0.000145,2]
[396367655,1764945036037,-728.81059944,0.000145,2]
[396367656,1764945036047,-4499.0,0.00014515,2]
[396367657,1764945036056,-500.0,0.00014521,2]
[396367658,1764945036065,-100000.0,0.0001459,2]
[396367659,1764945036074,-2728.20702819,0.00014641,2]
[396367660,1764945036085,-506.66315514,0.00014649,5]
[396367661,1764945036094,-466.49526087,0.00014649,5]
[396367662,1764945036104,-3052.7906371,0.00014695,2]
[396367663,1764945036113,-773.0,0.000147,2]
[396367664,1764945036123,-1633.8561326,0.00014702,2]
[396367665,1764945036132,-900.0,0.00014768,2]
[396367666,1764945036141,-500.0,0.00014794,2]
[396367667,1764945036150,-438.99042326,0.00014795,2]
[396367668,1764945036159,-1110.53606004,0.00014795,2]
[396367669,1764945036169,-929.98907476,0.00014795,2]
[396367670,1764945036178,-1500.0,0.00014795,2]
[396367671,1764945036187,-1002.43465504,0.00014795,2]
[396367672,1764945036197,-500.87825198,0.00014795,2]
[396367673,1764945036206,-501.40815248,0.00014795,2]
[396367674,1764945036219,-502.7190202,0.00014795,2]
[396367675,1764945036228,-1503.34320019,0.00014795,2]
[396367676,1764945036238,-253.71074585,0.00014795,2]
[396367677,1764945036247,-1001.16629147,0.00014795,2]
[396367678,1764945036256,-501.44781859,0.00014795,2]
[396367679,1764945036265,-501.16804426,0.00014795,2]
[396367680,1764945036275,-500.66940362,0.00014795,2]
[396367681,1764945036284,-1500.0,0.00014795,2]
[396367682,1764945036293,-274.7018458,0.00014795,2]
[396367683,1764945036303,-1500.0,0.00014795,2]
[396367684,1764945036312,-185.07738037,0.00014795,2]
[396367685,1764945036321,-1500.0,0.00014795,2]
[396367686,1764945036331,-795.36301317,0.00014795,2]
[396367687,1764945036341,-1500.0,0.00014795,2]
[396367688,1764945036351,-1500.0,0.00014795,2]
[396367689,1764945036361,-151.0,0.000148,2]
[396367690,1764945036372,-2160.771,0.00014802,2]
[396367691,1764945036381,-1359.0,0.00014802,2]
[396367692,1764945036391,-641.991,0.00014802,2]
[396367693,1764945036400,-415.0,0.00014802,2]
[396367694,1764945036410,-166.0,0.00014845,2]
[396367695,1764945036419,-166.0,0.00014845,2]
[396367696,1764945036428,-166.0,0.00014845,2]
[396367697,1764945036438,-166.0,0.00014845,2]
[396367698,1764945036447,-166.0,0.00014845,2]
[396367699,1764945036457,-166.0,0.00014845,2]
[396367700,1764945036472,-172.0,0.00014845,2]
[396367701,1764945036482,-152.0,0.00014845,2]
[396367702,1764945036491,-152.0,0.00014845,2]
[396367703,1764945036501,-152.0,0.00014845,2]
[396367704,1764945036510,-152.0,0.00014845,2]
[396367705,1764945036519,-152.0,0.00014845,2]
[396367706,1764945036528,-152.0,0.00014845,2]
[396367707,1764945036537,-152.0,0.00014845,2]
[396367708,1764945036547,-152.0,0.00014845,2]
[396367709,1764945036557,-152.0,0.00014845,2]
[396367710,1764945036567,-152.0,0.00014845,2]
[396367711,1764945036577,-152.0,0.00014845,2]
[396367712,1764945036588,-152.0,0.00014845,2]
[396367713,1764945036597,-152.0,0.00014845,2]
[396367714,1764945036606,-152.0,0.00014845,2]
[396367715,1764945036616,-152.0,0.00014845,2]
[396367716,1764945036626,-152.0,0.00014845,2]
[396367717,1764945036635,-152.0,0.00014845,2]
[396367718,1764945036644,-152.0,0.00014845,2]
[396367719,1764945036654,-152.0,0.00014845,2]
[396367720,1764945036663,-152.0,0.00014845,2]
[396367721,1764945036672,-152.0,0.00014845,2]
[396367722,1764945036681,-152.0,0.00014845,2]
[396367723,1764945036690,-152.0,0.00014845,2]
[396367724,1764945036699,-152.0,0.00014845,2]
[396367725,1764945036709,-152.0,0.00014845,2]
[396367726,1764945036723,-152.0,0.00014845,2]
[396367727,1764945036732,-152.0,0.00014845,2]
[396367728,1764945036742,-242.00255614,0.00014845,2]
[396367729,1764945036751,-172.0,0.00014845,2]
[396367730,1764945036760,-177.45311007,0.00014845,2]
[396367731,1764945036770,-152.0,0.00014845,2]
[396367732,1764945036780,-152.0,0.00014845,2]
[396367733,1764945036789,-162.0,0.00014845,2]
[396367734,1764945036799,-152.0,0.00014845,2]
[396367735,1764945036808,-162.0,0.00014845,2]
[396367736,1764945036817,-152.0,0.00014845,2]
[396367737,1764945036826,-152.0,0.00014845,2]
[396367738,1764945036836,-162.0,0.00014845,2]
[396367739,1764945036845,-152.0,0.00014845,2]
[396367740,1764945036854,-162.0,0.00014845,2]
[396367741,1764945036863,-152.0,0.00014845,2]
[396367742,1764945036872,-152.0,0.00014845,2]
[396367743,1764945036882,-333.0,0.00014845,2]
[396367744,1764945036891,-333.0,0.00014845,2]
[396367745,1764945036900,-152.0,0.00014845,2]
[396367746,1764945036909,-162.0,0.00014845,2]
[396367747,1764945036919,-167.29099796,0.00014845,2]
[396367748,1764945037013,-333.0,0.00014845,2]
[396367749,1764945037023,-292.41853914,0.00014845,2]
[396367750,1764945037033,-333.0,0.00014845,2]
[396367751,1764945037042,-333.0,0.00014845,2]
[396367752,1764945037052,-333.0,0.00014845,2]
[396367753,1764945037061,-333.0,0.00014845,2]
[396367754,1764945037070,-333.0,0.00014845,2]
[396367755,1764945037081,-333.0,0.00014845,2]
[396367756,1764945037090,-333.0,0.00014845,2]
[396367757,1764945037100,-333.0,0.00014845,2]
[396367758,1764945037110,-333.0,0.00014845,2]
[396367759,1764945037119,-333.0,0.00014845,2]
[396367760,1764945037129,-333.0,0.00014845,2]
[396367761,1764945037138,-333.0,0.00014845,2]
[396367762,1764945037148,-333.0,0.00014845,2]
[396367763,1764945037158,-333.0,0.00014845,2]
[396367764,1764945037167,-333.0,0.00014845,2]
[396367765,1764945037177,-333.0,0.00014845,2]
[396367766,1764945037187,-333.0,0.00014845,2]
[396367767,1764945037197,-333.0,0.00014845,2]
[396367768,1764945037206,-333.0,0.00014845,2]
[396367769,1764945037226,-333.0,0.00014845,2]
[396367770,1764945037236,-333.0,0.00014845,2]
[396367771,1764945037246,-333.0,0.00014845,2]
[396367772,1764945037256,-333.0,0.00014845,2]
[396367773,1764945037267,-333.0,0.00014845,2]
[396367774,1764945037276,-333.0,0.00014845,2]
[396367775,1764945037286,-333.0,0.00014845,2]
[396367776,1764945037296,-333.0,0.00014845,2]
[396367777,1764945037305,-333.0,0.00014845,2]
[396367778,1764945037315,-333.0,0.00014845,2]
[396367779,1764945037325,-333.0,0.00014845,2]
[396367780,1764945037335,-333.0,0.00014845,2]
[396367781,1764945037345,-333.0,0.00014845,2]
[396367782,1764945037354,-333.0,0.00014845,2]
[396367783,1764945037364,-333.0,0.00014845,2]
[396367784,1764945037373,-333.0,0.00014845,2]
[396367785,1764945037383,-333.0,0.00014845,2]
[396367786,1764945037392,-333.0,0.00014845,2]
[396367787,1764945037407,-333.0,0.00014845,2]
[396367788,1764945037417,-333.0,0.00014845,2]
[396367789,1764945037428,-333.0,0.00014845,2]
[396367790,1764945037438,-333.0,0.00014845,2]
[396367791,1764945037448,-333.0,0.00014845,2]
[396367792,1764945037458,-333.0,0.00014845,2]
[396367793,1764945037472,-333.0,0.00014845,2]
[396367794,1764945037482,-333.0,0.00014845,2]
[396367795,1764945037493,-333.0,0.00014845,2]
[396367796,1764945037502,-333.0,0.00014845,2]
[396367797,1764945037512,-333.0,0.00014845,2]
[396367798,1764945037523,-333.0,0.00014845,2]
[396367799,1764945037532,-333.0,0.00014845,2]
[396367800,1764945037542,-333.0,0.00014845,2]
[396367801,1764945037551,-333.0,0.00014845,2]
[396367802,1764945037562,-333.0,0.00014845,2]
[396367803,1764945037575,-333.0,0.00014845,2]
[396367804,1764945037585,-333.0,0.00014845,2]
[396367805,1764945037595,-333.0,0.00014845,2]
[396367806,1764945037604,-333.0,0.00014845,2]
[396367807,1764945037614,-333.0,0.00014845,2]
[396367808,1764945037624,-333.0,0.00014845,2]
[396367809,1764945037634,-333.0,0.00014845,2]
[396367810,1764945037643,-333.0,0.00014845,2]
[396367811,1764945037653,-333.0,0.00014845,2]
[396367812,1764945037664,-333.0,0.00014845,2]
[396367813,1764945037673,-333.0,0.00014845,2]
[396367814,1764945037683,-333.0,0.00014845,2]
[396367815,1764945037692,-333.0,0.00014845,2]
[396367816,1764945037702,-333.0,0.00014845,2]
[396367817,1764945037711,-333.0,0.00014845,2]
[396367818,1764945037723,-327.8540764,0.00014845,2]
[396367819,1764945037732,-174.0,0.00014845,2]
[396367820,1764945037746,-174.0,0.00014845,2]
[396367821,1764945037756,-176.03929019,0.00014845,2]
[396367822,1764945037766,-166.0,0.00014845,2]
[396367823,1764945037776,-152.0,0.00014845,2]
[396367824,1764945037786,-154.87381586,0.00014845,2]
[396367825,1764945037796,-166.0,0.00014845,2]
[396367826,1764945037806,-166.0,0.00014845,2]
[396367827,1764945037815,-166.0,0.00014845,2]
[396367828,1764945037825,-166.0,0.00014845,2]
[396367829,1764945037835,-162.33269743,0.00014845,2]
[396367830,1764945037846,-324.64213046,0.00014845,2]
[396367831,1764945037856,-800.0,0.00014914,2]
[396367832,1764945037865,-504.24272619,0.00014916,2]
[396367833,1764945037876,-885.24668254,0.00014916,2]
[396367834,1764945037886,-2000.0,0.00014916,2]
[396367835,1764945037896,-914.20239147,0.00014916,2]
[396367836,1764945037907,-2000.0,0.00014916,2]
[396367837,1764945037916,-505.01315806,0.00014916,2]
[396367838,1764945037927,-800.0,0.00014942,2]
[396367839,1764945037936,-2674.60743027,0.00014956,2]
[396367840,1764945037947,-300.0,0.00015,2]
[396367841,1764945037958,-3034.88,0.00015,2]
[396367842,1764945037970,-84779.72257684,0.00015,7]
[396367843,1764945037980,-151.0,0.00015,2]
[396367844,1764945037991,-1381.72049519,0.00015047,2]
[396367845,1764945038001,-800.0,0.0001505,2]
[396367846,1764945038011,-364.5625805,0.0001507,2]
[396367847,1764945038022,-805.74112649,0.00015148,2]
[396367848,1764945038033,-151.0,0.000152,2]
[396367849,1764945038043,-600.0,0.00015316,2]
[396367850,1764945038053,-406.25349544,0.00015324,2]
[396367851,1764945038062,-374.0460075,0.00015324,2]
[396367852,1764945038072,-1500.0,0.00015342,2]
[396367853,1764945038082,-525.4106317,0.00015342,2]
[396367854,1764945038092,-2000.0,0.00015342,2]
[396367855,1764945038101,-2500.0,0.00015464,2]
[396367856,1764945038111,-2500.0,0.00015464,2]
[396367857,1764945038120,-2773.56790519,0.00015504,2]
[396367858,1764945038130,-728.81059943,0.00015556,2]
[396367859,1764945038139,-2728.20702819,0.00015598,2]
[396367860,1764945038149,-250.41222051,0.00015695,2]
[396367861,1764945038159,-823.0,0.00015718,2]
[396367862,1764945038169,-783.275654,0.00015771,2]
[396367863,1764945038178,-1553.0,0.00015771,2]
[396367864,1764945038188,-311.98568376,0.00015875,2]
[396367866,1764945038198,-2500.0,0.0001589,2]
[396367867,1764945038208,-499.20493578,0.00015981,2]
[396367868,1764945038218,-3000.0,0.00016012,2]
[396367869,1764945038229,-220.84443326,0.00016012,2]
[396367870,1764945038240,-2876.18991768,0.00016052,2]
[396367871,1764945038250,-4189.53496146,0.00016109,2]
[396367872,1764945038264,-500.0,0.00016164,2]
[396367873,1764945038274,-151.0,0.000162,2]
[396367874,1764945038284,-721.50620789,0.00016242,2]
[396367875,1764945038294,-664.30570933,0.00016242,2]
[396367876,1764945038305,-216.9817603,0.00016338,2]
[396367878,1764945038315,-10000.0,0.00016338,2]
[396367879,1764945038325,-413.78268062,0.00016438,2]
[396367881,1764945038335,-500.0,0.00016438,2]
[396367883,1764945038345,-500.0,0.00016438,2]
[396367885,1764945038355,-500.0,0.00016438,2]
[396367886,1764945038365,-500.0,0.00016438,2]
[396367887,1764945038375,-500.0,0.00016438,2]
[396367888,1764945038386,-500.0,0.00016438,2]
[396367890,1764945038397,-500.0,0.00016438,2]
[396367892,1764945038407,-527.5473623,0.00016438,2]
[396367894,1764945038418,-151.9421862,0.00016438,2]
[396367896,1764945038428,-530.69001864,0.00016438,2]
[396367898,1764945038438,-500.0,0.00016438,2]
[396367900,1764945038448,-500.0,0.00016438,2]
[396367902,1764945038460,-500.0,0.00016438,2]
[396367904,1764945038473,-525.49,0.00016438,2]
[396367906,1764945038483,-500.0,0.00016438,2]
[396367908,1764945038493,-500.0,0.00016438,2]
[396367910,1764945038503,-555.8758681,0.00016438,2]
[396367912,1764945038513,-1712.5,0.00016438,2]
[396367914,1764945038523,-1302.81,0.00016438,2]
[396367916,1764945038533,-500.0,0.00016438,2]
[396367918,1764945038543,-500.0,0.00016438,2]
[396367920,1764945038552,-503.68806363,0.00016438,2]
[396367922,1764945038562,-500.0,0.00016438,2]
[396367924,1764945038572,-505.91,0.00016438,2]
[396367926,1764945038586,-500.0,0.00016438,2]
[396367928,1764945038596,-500.0,0.00016438,2]
[396367930,1764945038606,-1123.59,0.00016438,2]
[396367932,1764945038616,-500.0,0.00016438,2]
[396367934,1764945038626,-500.0,0.00016438,2]
[396367936,1764945038635,-500.0,0.00016438,2]
[396367938,1764945038646,-500.0,0.00016438,2]
[396367940,1764945038657,-500.0,0.00016438,2]
[396367942,1764945038667,-528.38,0.00016438,2]
[396367944,1764945038677,-526.76069373,0.00016438,2]
[396367946,1764945038687,-500.0,0.00016438,2]
[396367948,1764945038697,-500.0,0.00016438,2]
[396367950,1764945038707,-500.0,0.00016438,2]
[396367953,1764945038725,-500.0,0.00016438,2]
[396367955,1764945038735,-500.0,0.00016438,2]
[396367957,1764945038745,-500.0,0.00016438,2]
[396367959,1764945038756,-500.0,0.00016438,2]
[396367961,1764945038765,-500.0,0.00016438,2]
[396367963,1764945038775,-500.0,0.00016438,2]
[396367965,1764945038785,-590.23,0.00016438,2]
[396367967,1764945038794,-500.0,0.00016438,2]
[396367969,1764945038804,-500.0,0.00016438,2]
[396367971,1764945038814,-548.19,0.00016438,2]
[396367973,1764945038823,-500.0,0.00016438,2]
[396367975,1764945038833,-500.0,0.00016438,2]
[396367977,1764945038842,-500.0,0.00016438,2]
[396367979,1764945038852,-500.0,0.00016438,2]
[396367981,1764945038861,-211.23069484,0.00016438,2]
[396367983,1764945038871,-500.0,0.00016438,2]
[396367985,1764945038881,-500.0,0.00016438,2]
[396367987,1764945038891,-500.0,0.00016438,2]
[396367989,1764945038900,-500.0,0.00016438,2]
[396367991,1764945038910,-500.0,0.00016438,2]
[396367993,1764945038919,-500.0,0.00016438,2]
[396367995,1764945038929,-500.0,0.00016438,2]
[396367997,1764945038938,-600.9,0.00016438,2]
[396367999,1764945038949,-832.63,0.00016438,2]
[396368001,1764945038958,-1252.96,0.00016438,2]
[396368003,1764945038969,-1523.07,0.00016438,2]
[396368005,1764945038978,-500.0,0.00016438,2]
[396368007,1764945038988,-681.54,0.00016438,2]
[396368009,1764945038998,-500.0,0.00016438,2]
[396368011,1764945039008,-832.65,0.00016438,2]
[396368013,1764945039018,-500.0,0.00016438,2]
[396368015,1764945039028,-571.14,0.00016438,2]
[396368017,1764945039037,-500.0,0.00016438,2]
[396368019,1764945039047,-500.0,0.00016438,2]
[396368021,1764945039057,-606.58,0.00016438,2]
[396368023,1764945039067,-927.74,0.00016438,2]
[396368025,1764945039076,-500.0,0.00016438,2]
[396368027,1764945039086,-500.0,0.00016438,2]
[396368029,1764945039095,-522.68679644,0.00016438,2]
[396368031,1764945039105,-500.0,0.00016438,2]
[396368033,1764945039114,-500.0,0.00016438,2]
[396368035,1764945039124,-295.17195348,0.00016438,2]
[396368037,1764945039134,-1163.0,0.00016438,2]
[396368039,1764945039144,-500.0,0.00016438,2]
[396368041,1764945039153,-500.0,0.00016438,2]
[396368043,1764945039163,-874.41,0.00016438,2]
[396368046,1764945039172,-2065.53,0.00016438,2]
[396368048,1764945039182,-500.0,0.00016438,2]
[396368050,1764945039191,-1063.91,0.00016438,2]
[396368052,1764945039201,-500.0,0.00016438,2]
[396368054,1764945039211,-366.94602581,0.00016438,2]
[396368056,1764945039223,-500.0,0.00016438,2]
[396368058,1764945039233,-504.35,0.00016438,2]
[396368060,1764945039243,-528.7,0.00016438,2]
[396368062,1764945039253,-629.93,0.00016438,2]
[396368064,1764945039262,-500.0,0.00016438,2]
[396368066,1764945039273,-975.48,0.00016438,2]
[396368068,1764945039282,-786.23,0.00016438,2]
[396368070,1764945039292,-1373.8,0.00016438,2]
[396368072,1764945039302,-670.32,0.00016438,2]
[396368074,1764945039312,-1915.14,0.00016438,2]
[396368076,1764945039321,-500.0,0.00016438,2]
[396368078,1764945039331,-500.0,0.00016438,2]
[396368080,1764945039340,-500.0,0.00016438,2]
[396368082,1764945039349,-1330.24,0.00016438,2]
[396368084,1764945039359,-500.0,0.00016438,2]
[396368086,1764945039368,-510.35,0.00016438,2]
[396368088,1764945039377,-613.86,0.00016438,2]
[396368090,1764945039386,-1804.65,0.00016438,2]
[396368092,1764945039396,-500.0,0.00016438,2]
[396368094,1764945039405,-500.0,0.00016438,2]
[396368096,1764945039414,-500.0,0.00016438,2]
[396368098,1764945039424,-1680.66,0.00016438,2]
[396368100,1764945039434,-508.43660096,0.00016438,2]
[396368102,1764945039443,-500.0,0.00016438,2]
[396368104,1764945039453,-500.0,0.00016438,2]
[396368106,1764945039462,-500.0,0.00016438,2]
[396368108,1764945039474,-500.0,0.00016438,2]
[396368110,1764945039483,-500.0,0.00016438,2]
[396368112,1764945039492,-500.0,0.00016438,2]
[396368114,1764945039502,-500.0,0.00016438,2]
[396368116,1764945039511,-500.0,0.00016438,2]
[396368118,1764945039521,-1637.98,0.00016438,2]
[396368121,1764945039531,-500.0,0.00016438,2]
[396368123,1764945039540,-1021.34,0.00016438,2]
[396368125,1764945039550,-500.0,0.00016438,2]
[396368127,1764945039560,-500.0,0.00016438,2]
[396368129,1764945039569,-500.0,0.00016438,2]
[396368131,1764945039581,-500.0,0.00016438,2]
[396368133,1764945039590,-500.0,0.00016438,2]
[396368134,1764945039600,-500.0,0.00016438,2]
[396368137,1764945039611,-500.0,0.00016438,2]
[396368139,1764945039620,-500.0,0.00016438,2]
[396368141,1764945039629,-500.0,0.00016438,2]
[396368143,1764945039639,-1793.0,0.00016438,2]
[396368145,1764945039648,-500.0,0.00016438,2]
[396368147,1764945039658,-500.0,0.00016438,2]
[396368149,1764945039667,-169.728144,0.00016438,2]
[396368150,1764945039676,-1240.88,0.00016438,2]
[396368152,1764945039685,-500.0,0.00016438,2]
[396368154,1764945039695,-500.0,0.00016438,2]
[396368156,1764945039704,-500.0,0.00016438,2]
[396368158,1764945039713,-1590.16,0.00016438,2]
[396368160,1764945039723,-500.0,0.00016438,2]
[396368162,1764945039733,-567.83087999,0.00016438,2]
[396368164,1764945039742,-500.0,0.00016438,2]
[396368166,1764945039751,-504.52024213,0.00016438,2]
[396368168,1764945039761,-500.0,0.00016438,2]
[396368170,1764945039771,-500.0,0.00016438,2]
[396368173,1764945039780,-591.06,0.00016438,2]
[396368175,1764945039789,-621.42,0.00016438,2]
[396368177,1764945039799,-204.50618415,0.00016438,2]
[396368179,1764945039808,-588.6,0.00016438,2]
[396368181,1764945039818,-660.51,0.00016438,2]
[396368183,1764945039827,-629.55,0.00016438,2]
[396368185,1764945039837,-500.0,0.00016438,2]
[396368187,1764945039846,-500.0,0.00016438,2]
[396368189,1764945039855,-500.0,0.00016438,2]
[396368191,1764945039865,-500.0,0.00016438,2]
[396368193,1764945039875,-500.0,0.00016438,2]
[396368195,1764945039885,-500.0,0.00016438,2]
[396368197,1764945039895,-2685.64,0.00016438,2]
[396368199,1764945039904,-844.5,0.00016438,2]
[396368201,1764945039914,-500.0,0.00016438,2]
[396368203,1764945039924,-500.0,0.00016438,2]
[396368205,1764945039933,-500.0,0.00016438,2]
[396368207,1764945039942,-2198.788655,0.00016438,2]
[396368209,1764945039952,-481.37551589,0.00016438,2]
[396368211,1764945039961,-500.0,0.00016438,2]
[396368213,1764945039974,-1230.96,0.00016438,2]
[396368215,1764945039984,-500.0,0.00016438,2]
[396368217,1764945039993,-2125.75,0.00016438,2]
[396368219,1764945040003,-720.29,0.00016438,2]
[396368221,1764945040013,-500.0,0.00016438,2]
[396368223,1764945040024,-2135.17,0.00016438,2]
[396368225,1764945040034,-500.0,0.00016438,2]
[396368227,1764945040044,-500.0,0.00016438,2]
[396368228,1764945040053,-538.4211933,0.00016438,2]
[396368229,1764945040063,-500.0,0.00016438,2]
[396368230,1764945040074,-1269.15,0.00016438,2]
[396368231,1764945040085,-500.0,0.00016438,2]
[396368232,1764945040095,-572.7,0.00016438,2]
[396368234,1764945040105,-540.38,0.00016438,2]
[396368236,1764945040115,-830.87,0.00016438,2]
[396368238,1764945040126,-500.0,0.00016438,2]
[396368239,1764945040136,-500.0,0.00016438,2]
[396368240,1764945040147,-506.46878291,0.00016438,2]
[396368241,1764945040157,-810.36,0.00016438,2]
[396368242,1764945040167,-500.0,0.00016438,2]
[396368243,1764945040177,-628.12,0.00016438,2]
[396368244,1764945040187,-500.0,0.00016438,2]
[396368245,1764945040197,-500.0,0.00016438,2]
[396368246,1764945040207,-706.6,0.00016438,2]
[396368247,1764945040217,-538.03,0.00016438,2]
[396368249,1764945040230,-500.0,0.00016438,2]
[396368251,1764945040240,-500.0,0.00016438,2]
[396368253,1764945040250,-576.82,0.00016438,2]
[396368255,1764945040260,-1316.37,0.00016438,2]
[396368257,1764945040270,-657.31,0.00016438,2]
[396368259,1764945040280,-500.0,0.00016438,2]
[396368261,1764945040290,-500.0,0.00016438,2]
[396368263,1764945040300,-500.0,0.00016438,2]
[396368265,1764945040311,-311.1490661,0.00016438,2]
[396368267,1764945040321,-730.35,0.00016438,2]
[396368269,1764945040331,-1315.42,0.00016438,2]
[396368271,1764945040342,-500.0,0.00016438,2]
[396368273,1764945040352,-1223.91,0.00016438,2]
[396368276,1764945040362,-603.84750706,0.00016438,2]
[396368279,1764945040372,-500.0,0.00016438,2]
[396368282,1764945040382,-500.0,0.00016438,2]
[396368284,1764945040392,-500.0,0.00016438,2]
[396368287,1764945040402,-938.43,0.00016438,2]
[396368290,1764945040411,-500.0,0.00016438,2]
[396368293,1764945040421,-1339.4,0.00016438,2]
[396368296,1764945040433,-582.16,0.00016438,2]
[396368299,1764945040443,-510.75,0.00016438,2]
[396368302,1764945040453,-1294.57,0.00016438,2]
[396368306,1764945040463,-500.0,0.00016438,2]
[396368309,1764945040476,-500.0,0.00016438,2]
[396368313,1764945040485,-565.09,0.00016438,2]
[396368315,1764945040495,-500.0,0.00016438,2]
[396368318,1764945040505,-500.0,0.00016438,2]
[396368320,1764945040515,-500.0,0.00016438,2]
[396368321,1764945040524,-500.0,0.00016438,2]
[396368324,1764945040536,-500.0,0.00016438,2]
[396368326,1764945040545,-1519.61,0.00016438,2]
[396368327,1764945040555,-500.0,0.00016438,2]
[396368330,1764945040566,-540.94,0.00016438,2]
[396368331,1764945040576,-200.82,0.00016438,2]
[396368334,1764945040587,-500.0,0.00016438,2]
[396368336,1764945040597,-500.0,0.00016438,2]
[396368338,1764945040607,-1156.78,0.00016438,2]
[396368340,1764945040618,-2233.74,0.00016438,2]
[396368342,1764945040627,-1601.44,0.00016438,2]
[396368344,1764945040637,-522.86745569,0.00016438,2]
[396368346,1764945040647,-500.0,0.00016438,2]
[396368348,1764945040657,-500.0,0.00016438,2]
[396368350,1764945040666,-514.61,0.00016438,2]
[396368352,1764945040675,-500.0,0.00016438,2]
[396368354,1764945040684,-500.0,0.00016438,2]
[396368356,1764945040694,-500.0,0.00016438,2]
[396368358,1764945040703,-1457.71,0.00016438,2]
[396368360,1764945040712,-500.0,0.00016438,2]
[396368362,1764945040723,-500.0,0.00016438,2]
[396368364,1764945040732,-500.0,0.00016438,2]
[396368366,1764945040742,-584.12,0.00016438,2]
[396368368,1764945040751,-696.01,0.00016438,2]
[396368370,1764945040761,-500.0,0.00016438,2]
[396368372,1764945040770,-500.0,0.00016438,2]
[396368374,1764945040780,-2269.59,0.00016438,2]
[396368375,1764945040789,-515.67,0.00016438,2]
[396368378,1764945040800,-500.0,0.00016438,2]
[396368380,1764945040809,-505.98,0.00016438,2]
[396368381,1764945040819,-500.0,0.00016438,2]
[396368383,1764945040828,-500.0,0.00016438,2]
[396368385,1764945040837,-2145.48,0.00016438,2]
[396368387,1764945040847,-526.79,0.00016438,2]
[396368390,1764945040856,-500.0,0.00016438,2]
[396368392,1764945040867,-500.0,0.00016438,2]
[396368393,1764945040877,-500.0,0.00016438,2]
[396368395,1764945040887,-500.0,0.00016438,2]
[396368398,1764945040897,-909.0,0.00016438,2]
[396368400,1764945040907,-500.0,0.00016438,2]